fUSD/lending_fUSD_20250123
["ID","MTS","AMOUNT","RATE_DAILY","PERIOD"]
[350157060,1737659466662,-204.79437108,0.00018082,2]
[350157061,1737659466673,-500.0,0.00018082,2]
[350157062,1737659466683,-500.0,0.00018082,2]
[350157063,1737659466694,-500.0,0.00018082,2]
[350157064,1737659466705,-383.68364992,0.00018082,2]
[350157065,1737659466716,-500.0,0.00018082,2]
[350157066,1737659466726,-500.0,0.00018082,2]
[350157067,1737659466738,-500.0,0.00018082,2]
[350157068,1737659466748,-500.0,0.00018082,2]
[350157069,1737659466759,-313.42193746,0.00018082,2]
[350157070,1737659466772,-500.0,0.00018082,2]
[350157071,1737659466784,-509.55,0.00018082,2]
[350157072,1737659466797,-500.0,0.00018082,2]
[350157073,1737659466807,-610.92,0.00018082,2]
[350157074,1737659466818,-706.81,0.00018082,2]
[350157075,1737659466828,-1003.27,0.00018082,2]
[350157076,1737659466838,-625.99,0.00018082,2]
[350157077,1737659466849,-570.26,0.00018082,2]
[350157078,1737659466859,-2144.07,0.00018082,2]
[350157079,1737659466870,-523.31,0.00018082,2]
[350157080,1737659466881,-576.57,0.00018082,2]
[350157081,1737659466892,-941.99,0.00018082,2]
[350157082,1737659466902,-814.94,0.00018082,2]
[350157083,1737659466913,-552.46,0.00018082,2]
[350157084,1737659466924,-1765.72,0.00018082,2]
[350157085,1737659466937,-500.0,0.00018082,2]
[350157086,1737659466948,-438.962228,0.00018082,2]
[350157087,1737659466959,-244.7,0.00018082,2]
[350157088,1737659466969,-1382.35,0.00018082,2]
[350157089,1737659466979,-500.0,0.00018082,2]
[350157090,1737659466990,-500.0,0.00018082,2]
[350157091,1737659467002,-764.07,0.00018082,2]
[350157092,1737659467013,-663.09,0.00018082,2]
[350157093,1737659467027,-500.0,0.00018082,2]
[350157094,1737659467038,-1685.96,0.00018082,2]
[350157095,1737659467048,-647.39,0.00018082,2]
[350157096,1737659467060,-784.74,0.00018082,2]
[350157097,1737659467071,-816.16,0.00018082,2]
[350157098,1737659467082,-500.0,0.00018082,2]
[350157099,1737659467094,-500.0,0.00018082,2]
[350157100,1737659467105,-504.112179,0.00018082,2]
[350157101,1737659467116,-500.0,0.00018082,2]
[350157102,1737659467126,-500.0,0.00018082,2]
[350157103,1737659467136,-2469.54,0.00018082,2]
[350157104,1737659467147,-748.67,0.00018082,2]
[350157105,1737659467157,-500.0,0.00018082,2]
[350157106,1737659467168,-896.15,0.00018082,2]
[350157107,1737659467178,-993.46,0.00018082,2]
[350157108,1737659467187,-857.28,0.00018082,2]
[350157109,1737659467198,-1315.43,0.00018082,2]
[350157110,1737659467210,-1046.73,0.00018082,2]
[350157111,1737659467220,-151.0,0.00018082,2]
[350157112,1737659467231,-500.0,0.00018082,2]
[350157113,1737659467241,-1815.73,0.00018082,2]
[350157114,1737659467251,-645.04,0.00018082,2]
[350157115,1737659467261,-500.0,0.00018082,2]
[350157116,1737659467274,-81.01571511,0.00018082,2]
[350157117,1737659467289,-422.13428489,0.00018082,2]
[350157118,1737659467301,-125.76571511,0.00018082,2]
[350157119,1737659467313,-736.38428489,0.00018082,2]
[350157120,1737659467324,-500.0,0.00018082,2]
[350157121,1737659467334,-500.0,0.00018082,2]
[350157122,1737659467347,-1898.25,0.00018082,2]
[350157123,1737659467357,-726.91,0.00018082,2]
[350157124,1737659467368,-151.0,0.00018082,2]
[350157125,1737659467378,-500.0,0.00018082,2]
[350157126,1737659467389,-500.0,0.00018082,2]
[350157127,1737659467399,-500.0,0.00018082,2]
[350157128,1737659467408,-2176.53,0.00018082,2]
[350157129,1737659467418,-907.74,0.00018082,2]
[350157130,1737659467428,-666.87,0.00018082,2]
[350157131,1737659467437,-905.1,0.00018082,2]
[350157132,1737659467447,-2308.47,0.00018082,2]
[350157133,1737659467456,-2228.58,0.00018082,2]
[350157134,1737659467465,-500.0,0.00018082,2]
[350157135,1737659467474,-500.0,0.00018082,2]
[350157136,1737659467484,-500.0,0.00018082,2]
[350157137,1737659467493,-901.95,0.00018082,2]
[350157138,1737659467502,-151.0,0.00018082,2]
[350157139,1737659467512,-1916.0,0.00018082,2]
[350157140,1737659467524,-871.22,0.00018082,2]
[350157141,1737659467534,-151.0,0.00018082,2]
[350157142,1737659467545,-1589.5,0.00018082,2]
[350157143,1737659467555,-1591.14,0.00018082,2]
[350157144,1737659467565,-421.33531717,0.00018082,2]
[350157145,1737659467576,-701.06,0.00018082,2]
[350157146,1737659467586,-726.08,0.00018082,2]
[350157147,1737659467596,-1735.27,0.00018082,2]
[350157148,1737659467605,-916.91,0.00018082,2]
[350157149,1737659467615,-1636.11802817,0.00018082,2]
[350157150,1737659467628,-651.11301577,0.00018082,2]
[350157151,1737659467640,-766.199,0.00018082,2]
[350157152,1737659467653,-973.56995606,0.00018082,2]
[350157153,1737659467663,-1282.02,0.00018082,2]
[350157154,1737659467672,-610.4923347,0.00018082,2]
[350157155,1737659540043,156.48,0.00010137,2]
[350157157,1737659602604,153.71,0.000223,31]
[350157158,1737659602708,153.71,0.000223,31]
[350157159,1737659602777,153.71,0.000223,31]
[350157160,1737659603018,153.71,0.000223,31]
[350157161,1737659603053,153.71,0.000223,31]
[350157162,1737659603089,153.71,0.000223,31]
[350157163,1737659603119,153.71,0.000223,31]
[350157164,1737659656723,501.01088793,0.00023,30]
[350157165,1737659809077,153.53,0.00016786,30]
[350157167,1737660205366,153.74,0.000223,31]
[350157168,1737660205402,153.74,0.000223,31]
[350157169,1737660205439,153.74,0.000223,31]
[350157170,1737660205468,153.74,0.000223,31]
[350157171,1737660205497,153.74,0.000223,31]
[350157172,1737660205532,153.74,0.000223,31]
[350157173,1737660205573,153.74,0.000223,31]
[350157187,1737660468995,-300.0,0.00011999,2]
[350157188,1737660469017,-150.0,0.00011999,2]
[350157189,1737660469038,-9550.0,0.00012,2]
[350157190,1737660472669,521.81,0.00010137,2]
[350157191,1737660473964,-9478.19,0.00012,2]
[350157192,1737660484190,-10000.0,0.00012,2]
[350157193,1737660495720,-5000.0,0.00012,2]
[350157194,1737660501988,-10000.0,0.00012,2]
[350157196,1737660502877,-10000.0,0.00012,2]
[350157199,1737660503559,-10000.0,0.00012,2]
[350157201,1737660504037,-10000.0,0.00012,2]
[350157202,1737660504383,-10000.0,0.00012,2]
[350157203,1737660504835,-10000.0,0.00012,2]
[350157204,1737660505251,-10000.0,0.00012,2]
[350157205,1737660505759,-10000.0,0.00012,2]
[350157206,1737660506298,-10000.0,0.00012,2]
[350157207,1737660507448,-10000.0,0.00012,2]
[350157208,1737660508190,10000.0,0.00023,30]
[350157213,1737660529973,-10000.0,0.00012,2]
[350157214,1737660530775,-10000.0,0.00012,2]
[350157215,1737660531565,-10000.0,0.00012,2]
[350157216,1737660532300,-10000.0,0.00012,2]
[350157217,1737660533085,-1298.94998472,0.00012,2]
[350157232,1737660631738,-562.63279995,0.00013,2]
[350157233,1737660631794,-10.69526687,0.00013,2]
[350157234,1737660631803,-643.94723363,0.000149,2]
[350157235,1737660631813,-195.0,0.00014965,2]
[350157236,1737660631822,-550.0,0.00015,2]
[350157237,1737660631831,-684.37706205,0.0001513,2]
[350157238,1737660631957,-34.19293795,0.0001513,2]
[350157239,1737660631966,-643.94723346,0.00015141,2]
[350157240,1737660631975,-250.0,0.00015288,2]
[350157241,1737660631985,-491.22,0.00015324,2]
[350157242,1737660631994,-643.94723346,0.00015383,2]
[350157243,1737660632004,-13208.01560926,0.000154,2]
[350157244,1737660632013,-1316.0,0.000156,2]
[350157245,1737660632022,-643.94723346,0.00015624,2]
[350157246,1737660632035,-643.94723346,0.00015866,2]
[350157247,1737660632044,-200.0,0.00015911,2]
[350157248,1737660632053,-1000.0,0.00015948,2]
[350157249,1737660632063,-250.0,0.00015983,2]
[350157250,1737660632073,-250.0,0.00015983,2]
[350157251,1737660632082,-3013.86165065,0.00016,2]
[350157252,1737660632091,-643.94723346,0.00016107,2]
[350157253,1737660632101,-5726.25928295,0.00016238,2]
[350157254,1737660632111,-220.21,0.0001629,2]
[350157255,1737660632121,-220.21,0.0001629,2]
[350157256,1737660632131,-255.0,0.00016299,2]
[350157257,1737660632141,-178833.29435189,0.000163,4]
[350157258,1737660632157,-434428.62201916,0.000163,4]
[350157728,1737660637650,-1886.35474984,0.000163,4]
[350157729,1737660637706,-684.29603111,0.000163,4]
[350157730,1737660637715,-582.742,0.00016338,2]
[350157731,1737660637723,-418.5181,0.00016338,2]
[350157732,1737660637732,-643.94723346,0.00016348,2]
[350157733,1737660637741,-23900.0,0.0001637,2]
[350157734,1737660637749,-286.4,0.0001637,2]
[350157735,1737660637758,-504.15479132,0.00016438,2]
[350157736,1737660637771,-500.0,0.00016438,2]
[350157737,1737660637785,-301.00341869,0.00016438,2]
[350157738,1737660637799,-500.0,0.00016438,2]
[350157739,1737660637813,-500.0,0.00016438,2]
[350157740,1737660637823,-500.0,0.00016438,2]
[350157741,1737660637834,-500.0,0.00016438,2]
[350157742,1737660637846,-500.0,0.00016438,2]
[350157743,1737660637859,-500.0,0.00016438,2]
[350157744,1737660637871,-500.0,0.00016438,2]
[350157745,1737660637883,-254.53454176,0.00016438,2]
[350157746,1737660637897,-500.0,0.00016438,2]
[350157747,1737660637910,-500.0,0.00016438,2]
[350157748,1737660637922,-500.0,0.00016438,2]
[350157749,1737660637934,-500.0,0.00016438,2]
[350157750,1737660637945,-500.0,0.00016438,2]
[350157751,1737660637956,-500.0,0.00016438,2]
[350157752,1737660637969,-500.0,0.00016438,2]
[350157753,1737660637982,-500.0,0.00016438,2]
[350157754,1737660637995,-500.0,0.00016438,2]
[350157755,1737660638007,-500.0,0.00016438,2]
[350157756,1737660638019,-500.0,0.00016438,2]
[350157757,1737660638031,-500.0,0.00016438,2]
[350157758,1737660638045,-500.0,0.00016438,2]
[350157759,1737660638057,-500.0,0.00016438,2]
[350157760,1737660638070,-500.0,0.00016438,2]
[350157761,1737660638082,-500.0,0.00016438,2]
[350157762,1737660638095,-500.0,0.00016438,2]
[350157765,1737660638108,-500.0,0.00016438,2]
[350157767,1737660638121,-500.0,0.00016438,2]
[350157769,1737660638133,-500.0,0.00016438,2]
[350157770,1737660638145,-500.0,0.00016438,2]
[350157773,1737660638157,-500.0,0.00016438,2]
[350157776,1737660638169,-500.0,0.00016438,2]
[350157778,1737660638181,-500.0,0.00016438,2]
[350157779,1737660638194,-500.0,0.00016438,2]
[350157780,1737660638207,-500.0,0.00016438,2]
[350157781,1737660638220,-500.0,0.00016438,2]
[350157782,1737660638233,-500.0,0.00016438,2]
[350157783,1737660638244,-500.0,0.00016438,2]
[350157784,1737660638254,-500.0,0.00016438,2]
[350157785,1737660638265,-500.0,0.00016438,2]
[350157786,1737660638276,-500.0,0.00016438,2]
[350157787,1737660638291,-500.0,0.00016438,2]
[350157788,1737660638305,-290.42,0.00016438,2]
[350157789,1737660638317,-500.0,0.00016438,2]
[350157790,1737660638327,-500.0,0.00016438,2]
[350157791,1737660638338,-500.0,0.00016438,2]
[350157792,1737660638348,-500.0,0.00016438,2]
[350157793,1737660638359,-500.0,0.00016438,2]
[350157794,1737660638371,-500.0,0.00016438,2]
[350157795,1737660638384,-500.0,0.00016438,2]
[350157796,1737660638395,-500.0,0.00016438,2]
[350157797,1737660638406,-500.0,0.00016438,2]
[350157798,1737660638416,-500.0,0.00016438,2]
[350157799,1737660638427,-500.0,0.00016438,2]
[350157800,1737660638437,-500.0,0.00016438,2]
[350157801,1737660638448,-505.91,0.00016438,2]
[350157802,1737660638459,-500.0,0.00016438,2]
[350157803,1737660638471,-644.14,0.00016438,2]
[350157804,1737660638482,-500.0,0.00016438,2]
[350157805,1737660638493,-500.0,0.00016438,2]
[350157806,1737660638504,-500.0,0.00016438,2]
[350157807,1737660638515,-648.9,0.00016438,2]
[350157808,1737660638525,-1678.74,0.00016438,2]
[350157809,1737660638536,-500.0,0.00016438,2]
[350157810,1737660638547,-1211.44,0.00016438,2]
[350157811,1737660638558,-500.0,0.00016438,2]
[350157812,1737660638568,-684.65,0.00016438,2]
[350157813,1737660638579,-978.81,0.00016438,2]
[350157814,1737660638590,-658.78,0.00016438,2]
[350157815,1737660638601,-500.0,0.00016438,2]
[350157816,1737660638612,-729.6,0.00016438,2]
[350157817,1737660638623,-693.86,0.00016438,2]
[350157818,1737660638634,-1581.62,0.00016438,2]
[350157819,1737660638645,-1435.94,0.00016438,2]
[350157820,1737660638655,-644.79,0.00016438,2]
[350157821,1737660638666,-500.0,0.00016438,2]
[350157822,1737660638677,-505.44,0.00016438,2]
[350157823,1737660638688,-500.0,0.00016438,2]
[350157824,1737660638702,-1378.61,0.00016438,2]
[350157825,1737660638713,-500.0,0.00016438,2]
[350157826,1737660638723,-500.0,0.00016438,2]
[350157827,1737660638734,-1158.98,0.00016438,2]
[350157828,1737660638746,-198.16719088,0.00016438,2]
[350157829,1737660638790,-301.83280912,0.00016438,2]
[350157830,1737660638801,-500.0,0.00016438,2]
[350157831,1737660638811,-1294.66719088,0.00016438,2]
[350157832,1737660638847,-434.42280912,0.00016438,2]
[350157833,1737660638858,-330.81060941,0.00016438,2]
[350157834,1737660638869,-500.0,0.00016438,2]
[350157835,1737660638881,-500.0,0.00016438,2]
[350157836,1737660638892,-500.0,0.00016438,2]
[350157837,1737660638902,-500.0,0.00016438,2]
[350157838,1737660638913,-500.0,0.00016438,2]
[350157839,1737660638924,-500.0,0.00016438,2]
[350157840,1737660638935,-1338.73,0.00016438,2]
[350157841,1737660638946,-500.0,0.00016438,2]
[350157842,1737660638957,-500.0,0.00016438,2]
[350157843,1737660638968,-913.15,0.00016438,2]
[350157844,1737660638980,-500.0,0.00016438,2]
[350157845,1737660638991,-500.0,0.00016438,2]
[350157846,1737660639003,-5726.25928286,0.00016532,2]
[350157847,1737660639015,-163.24,0.00016567,2]
[350157848,1737660639025,-384.66836809,0.00016579,2]
[350157849,1737660639040,-200.0,0.00016587,2]
[350157850,1737660639051,-643.94723346,0.0001659,2]
[350157851,1737660639063,-200.0,0.00016596,2]
[350157852,1737660639074,-5000.0,0.00016611,2]
[350157853,1737660639086,-461.2732,0.00016612,2]
[350157854,1737660639097,-384.66836809,0.00016623,2]
[350157855,1737660639109,-1142.52528729,0.00016646,2]
[350157856,1737660639121,-200.0,0.0001665,2]
[350157857,1737660639133,-384.66836809,0.00016655,2]
[350157858,1737660639144,-1142.52528729,0.00016656,2]
[350157859,1737660639155,-1142.52528729,0.00016658,2]
[350157860,1737660639166,-384.66836809,0.00016676,2]
[350157861,1737660639177,-438.137902,0.00016679,2]
[350157862,1737660639188,-500.0,0.00016679,2]
[350157863,1737660639199,-500.0,0.00016679,2]
[350157864,1737660639210,-590.82,0.00016679,2]
[350157865,1737660639222,-511.36,0.00016679,2]
[350157866,1737660639234,-333.616686,0.00016679,2]
[350157867,1737660639245,-1278.58,0.00016679,2]
[350157868,1737660639257,-279.72909541,0.00016679,2]
[350157869,1737660639272,-161.826172,0.00016679,2]
[350157870,1737660639287,-574.57,0.00016679,2]
[350157871,1737660639299,-500.0,0.00016679,2]
[350157872,1737660639310,-683.02,0.00016679,2]
[350157873,1737660639321,-556.88,0.00016679,2]
[350157874,1737660639332,-1026.27,0.00016679,2]
[350157875,1737660639344,-809.65,0.00016679,2]
[350157876,1737660639356,-671.67,0.00016679,2]
[350157877,1737660639367,-1437.99,0.00016679,2]
[350157878,1737660639378,-1730.18,0.00016679,2]
[350157879,1737660639389,-623.05524361,0.00016679,2]
[350157880,1737660639418,-975.73475639,0.00016679,2]
[350157881,1737660639429,-567.12,0.00016679,2]
[350157882,1737660639439,-1280.17,0.00016679,2]
[350157883,1737660639450,-1378.0,0.00016679,2]
[350157884,1737660639463,-1460.02,0.00016679,2]
[350157885,1737660639473,-2944.03,0.00016679,2]
[350157886,1737660639482,-913.9,0.00016679,2]
[350157887,1737660639492,-558.63,0.00016679,2]
[350157888,1737660639501,-1834.11,0.00016679,2]
[350157889,1737660639511,-500.0,0.00016679,2]
[350157890,1737660639520,-893.7,0.00016679,2]
[350157891,1737660639530,-522.35872629,0.00016679,2]
[350157892,1737660639542,-721.88,0.00016679,2]
[350157894,1737660639552,-790.71,0.00016679,2]
[350157897,1737660639831,-752.32,0.00016679,2]
[350157898,1737660639842,-176.40963862,0.0001668,2]
[350157899,1737660639851,-1669.004,0.0001668,2]
[350157900,1737660639862,-200.0,0.00016682,2]
[350157901,1737660639872,-1142.52528729,0.00016687,2]
[350157902,1737660639882,-200.0,0.00016689,2]
[350157903,1737660639891,-1142.52528729,0.00016693,2]
[350157904,1737660639901,-384.66836809,0.00016698,2]
[350157905,1737660639910,-500.0,0.00016711,2]
[350157906,1737660639919,-500.0,0.00016711,2]
[350157907,1737660639928,-500.0,0.00016711,2]
[350157908,1737660639938,-500.0,0.00016711,2]
[350157909,1737660639947,-500.0,0.00016711,2]
[350157910,1737660639956,-500.0,0.00016711,2]
[350157911,1737660639965,-500.0,0.00016711,2]
[350157912,1737660639975,-501.45395146,0.00016711,2]
[350157913,1737660639984,-500.0,0.00016711,2]
[350157914,1737660639994,-500.0,0.00016711,2]
[350157915,1737660640003,-500.0,0.00016711,2]
[350157916,1737660640013,-500.0,0.00016711,2]
[350157917,1737660640023,-500.0,0.00016711,2]
[350157918,1737660640033,-500.0,0.00016711,2]
[350157919,1737660640045,-500.0,0.00016711,2]
[350157920,1737660640055,-500.0,0.00016711,2]
[350157921,1737660640064,-500.0,0.00016711,2]
[350157922,1737660640073,-500.0,0.00016711,2]
[350157923,1737660640083,-500.0,0.00016711,2]
[350157924,1737660640093,-500.0,0.00016711,2]
[350157925,1737660640102,-500.0,0.00016711,2]
[350157926,1737660640111,-395.90729661,0.00016711,2]
[350157927,1737660640120,-500.0,0.00016711,2]
[350157928,1737660640130,-500.0,0.00016711,2]
[350157929,1737660640139,-500.0,0.00016711,2]
[350157931,1737660640148,-500.0,0.00016711,2]
[350157933,1737660640158,-500.0,0.00016711,2]
[350157934,1737660640167,-500.0,0.00016711,2]
[350157936,1737660640176,-500.0,0.00016711,2]
[350157938,1737660640185,-500.0,0.00016711,2]
[350157940,1737660640195,-500.0,0.00016711,2]
[350157942,1737660640205,-500.0,0.00016711,2]
[350157944,1737660640215,-500.0,0.00016711,2]
[350157946,1737660640224,-500.0,0.00016711,2]
[350157948,1737660640233,-500.0,0.00016711,2]
[350157950,1737660640242,-521.06,0.00016711,2]
[350157952,1737660640251,-542.32,0.00016711,2]
[350157954,1737660640260,-500.0,0.00016711,2]
[350157956,1737660640269,-500.0,0.00016711,2]
[350157958,1737660640279,-505.88,0.00016711,2]
[350157960,1737660640292,-1637.58,0.00016711,2]
[350157962,1737660640301,-500.0,0.00016711,2]
[350157964,1737660640310,-627.17,0.00016711,2]
[350157966,1737660640320,-500.0,0.00016711,2]
[350157967,1737660640329,-1053.45,0.00016711,2]
[350157968,1737660640339,-639.52,0.00016711,2]
[350157969,1737660640348,-500.0,0.00016711,2]
[350157970,1737660640357,-538.25,0.00016711,2]
[350157971,1737660640366,-500.0,0.00016711,2]
[350157972,1737660640376,-1309.17,0.00016711,2]
[350157973,1737660640384,-576.69,0.00016711,2]
[350157974,1737660640394,-500.0,0.00016711,2]
[350157975,1737660640403,-2875.6,0.00016711,2]
[350157976,1737660640412,-500.0,0.00016711,2]
[350157977,1737660640421,-1792.69,0.00016711,2]
[350157978,1737660640430,-500.0,0.00016711,2]
[350157979,1737660640440,-500.0,0.00016711,2]
[350157980,1737660640449,-608.16,0.00016711,2]
[350157981,1737660640458,-500.0,0.00016711,2]
[350157982,1737660640467,-724.53,0.00016711,2]
[350157983,1737660640476,-855.54,0.00016711,2]
[350157984,1737660640485,-500.0,0.00016711,2]
[350157985,1737660640494,-641.11,0.00016711,2]
[350157986,1737660640504,-500.0,0.00016711,2]
[350157987,1737660640513,-1332.55,0.00016711,2]
[350157988,1737660640523,-565.08,0.00016711,2]
[350157989,1737660640533,-500.0,0.00016711,2]
[350157990,1737660640544,-1129.12,0.00016711,2]
[350157991,1737660640554,-535.73,0.00016711,2]
[350157992,1737660640563,-500.0,0.00016711,2]
[350157993,1737660640572,-555.98,0.00016711,2]
[350157994,1737660640581,-500.0,0.00016711,2]
[350157995,1737660640591,-500.0,0.00016711,2]
[350157996,1737660640601,-500.0,0.00016711,2]
[350157997,1737660640610,-772.84,0.00016711,2]
[350157998,1737660640619,-500.0,0.00016711,2]
[350157999,1737660640628,-2965.73,0.00016711,2]
[350158000,1737660640638,-500.0,0.00016711,2]
[350158001,1737660640647,-1149.68,0.00016711,2]
[350158002,1737660640656,-500.0,0.00016711,2]
[350158003,1737660640666,-755.23,0.00016711,2]
[350158004,1737660640675,-862.75,0.00016711,2]
[350158005,1737660640685,-500.0,0.00016711,2]
[350158006,1737660640698,-500.0,0.00016711,2]
[350158007,1737660640707,-196.46059827,0.00016711,2]
[350158008,1737660640717,-234.43967135,0.00016711,2]
[350158009,1737660640726,-796.13,0.00016711,2]
[350158010,1737660640736,-500.0,0.00016711,2]
[350158011,1737660640745,-500.0,0.00016711,2]
[350158012,1737660640754,-805.63,0.00016711,2]
[350158013,1737660640764,-500.0,0.00016711,2]
[350158014,1737660640773,-1391.92,0.00016711,2]
[350158015,1737660640783,-500.0,0.00016711,2]
[350158016,1737660640795,-500.0,0.00016711,2]
[350158017,1737660640805,-500.0,0.00016711,2]
[350158018,1737660640814,-500.0,0.00016711,2]
[350158019,1737660640824,-500.0,0.00016711,2]
[350158020,1737660640834,-500.0,0.00016711,2]
[350158021,1737660640843,-2468.27,0.00016711,2]
[350158022,1737660640852,-539.25,0.00016711,2]
[350158023,1737660640862,-500.0,0.00016711,2]
[350158024,1737660640871,-501.82926816,0.00016711,2]
[350158025,1737660640880,-500.0,0.00016711,2]
[350158026,1737660640889,-567.93,0.00016711,2]
[350158027,1737660640898,-518.53,0.00016711,2]
[350158028,1737660640907,-764.13,0.00016711,2]
[350158029,1737660640916,-500.0,0.00016711,2]
[350158030,1737660640925,-500.0,0.00016711,2]
[350158031,1737660640934,-500.0,0.00016711,2]
[350158032,1737660640943,-786.4,0.00016711,2]
[350158033,1737660640953,-500.0,0.00016711,2]
[350158034,1737660640962,-500.0,0.00016711,2]
[350158035,1737660640971,-500.0,0.00016711,2]
[350158036,1737660640981,-385.90982538,0.00016711,2]
[350158037,1737660641008,-114.09017462,0.00016711,2]
[350158038,1737660641018,-711.52,0.00016711,2]
[350158039,1737660641027,-500.0,0.00016711,2]
[350158040,1737660641039,-500.0,0.00016711,2]
[350158041,1737660641048,-506.74362084,0.00016711,2]
[350158042,1737660641058,-500.0,0.00016711,2]
[350158043,1737660641068,-500.0,0.00016712,2]
[350158044,1737660641077,-480.76526334,0.00016712,2]
[350158045,1737660641087,-500.0,0.00016712,2]
[350158046,1737660641096,-500.0,0.00016712,2]
[350158047,1737660641105,-500.0,0.00016712,2]
[350158048,1737660641115,-500.0,0.00016712,2]
[350158049,1737660641124,-500.0,0.00016712,2]
[350158050,1737660641134,-500.0,0.00016712,2]
[350158051,1737660641143,-500.0,0.00016712,2]
[350158052,1737660641153,-500.0,0.00016712,2]
[350158053,1737660641162,-500.0,0.00016712,2]
[350158054,1737660641171,-500.0,0.00016712,2]
[350158055,1737660641180,-500.0,0.00016712,2]
[350158056,1737660641189,-500.0,0.00016712,2]
[350158057,1737660641199,-500.0,0.00016712,2]
[350158058,1737660641209,-500.0,0.00016712,2]
[350158059,1737660641220,-539.84,0.00016712,2]
[350158060,1737660641229,-8.59256834,0.00016712,2]
[350158061,1737660641241,-511.23856321,0.00016712,2]
[350158062,1737660641250,-500.0,0.00016712,2]
[350158063,1737660641259,-500.0,0.00016712,2]
[350158064,1737660641269,-500.0,0.00016712,2]
[350158065,1737660641279,-632.38,0.00016712,2]
[350158066,1737660641291,-500.0,0.00016712,2]
[350158067,1737660641302,-500.0,0.00016712,2]
[350158068,1737660641312,-500.0,0.00016712,2]
[350158069,1737660641321,-500.0,0.00016712,2]
[350158070,1737660641331,-500.0,0.00016712,2]
[350158071,1737660641340,-500.0,0.00016712,2]
[350158072,1737660641350,-500.0,0.00016712,2]
[350158073,1737660641359,-500.0,0.00016712,2]
[350158074,1737660641368,-500.0,0.00016712,2]
[350158075,1737660641378,-500.0,0.00016712,2]
[350158076,1737660641387,-500.0,0.00016712,2]
[350158077,1737660641397,-500.0,0.00016712,2]
[350158078,1737660641406,-500.0,0.00016712,2]
[350158079,1737660641415,-500.0,0.00016712,2]
[350158080,1737660641424,-500.0,0.00016712,2]
[350158081,1737660641433,-500.0,0.00016712,2]
[350158082,1737660641443,-500.0,0.00016712,2]
[350158083,1737660641452,-500.0,0.00016712,2]
[350158084,1737660641462,-500.0,0.00016712,2]
[350158085,1737660641471,-500.0,0.00016712,2]
[350158086,1737660641481,-500.0,0.00016712,2]
[350158087,1737660641489,-500.0,0.00016712,2]
[350158088,1737660641499,-500.0,0.00016712,2]
[350158089,1737660641510,-500.0,0.00016712,2]
[350158090,1737660641519,-505.91,0.00016712,2]
[350158091,1737660641529,-229.14697648,0.00016712,2]
[350158092,1737660641540,-644.14,0.00016712,2]
[350158093,1737660641549,-500.0,0.00016712,2]
[350158094,1737660641559,-500.0,0.00016712,2]
[350158095,1737660641568,-500.0,0.00016712,2]